Cogmind - Beta 13 @@@ ROGUE MODE // 2024.06.30 @ 23:35:27 Player: Duduxx Result: Destroyed by as-67332 with Assembled Maul Performance ------------- Evolutions (0) 0 Regions Visited (2) 400 Robots Destroyed (10) 50 Value Destroyed (204) 204 Prototype IDs (0) 0 Alien Tech Used (0) 0 Bonus (0) 0 TOTAL SCORE: 654 Bonus ------- None Cogmind --------- Core Integrity 0/250 Matter 300/300 Energy 100/100 System Corruption 1% Temperature Cool (0) Movement Treading (160) Location -10/Mines Parts ------- > --- POWER (1) -------- (None) > --- PROPULSION (2) --- Light Treads Light Treads > --- UTILITY (2) ------ Large Storage Unit Visual Processing Unit > --- WEAPON (2) ------- Grenade Launcher > --- INVENTORY (15) --- Aluminum Leg Sensor Array Peak State ------------ > --- POWER ------------ Ion Engine > --- PROPULSION ------- Aluminum Leg Aluminum Leg > --- UTILITY ---------- Small Storage Unit Visual Processing Unit > --- WEAPON ----------- Assault Rifle Welding Torch > --- INVENTORY -------- Light Treads Light Treads Aluminum Leg Sensor Array Grenade Launcher [Rating: 8] Favorites ----------- Power Ion Engine Engine Ion Engine Propulsion Aluminum Leg Treads Light Treads Leg Aluminum Leg Utility Small Storage Unit Device ECM Suite Storage Small Storage Unit Processor Visual Processing Unit Weapon EM Pulse Gun Energy Gun EM Pulse Gun Ballistic Gun Assault Rifle Launcher Grenade Launcher Special Weapon Welding Torch Build | -11 -10 -10 ------- Run | Yrd Mat Min Slots Evolved . | . . . Power . | . . . Propulsion . | . . . Utility . | . . . Weapon . | . . . Parts Attached 18 | 6 4 8 Power 2 | 1 . 1 Engine 2 | 1 . 1 Core . | . . . Reactor . | . . . Propulsion 6 | 2 1 3 Treads 2 | . . 2 Leg 4 | 2 1 1 Wheel . | . . . Hover . | . . . Flight . | . . . Utility 4 | 1 2 1 Device 1 | . 1 . Storage 2 | 1 . 1 Processor 1 | . 1 . Hackware . | . . . Protection . | . . . Artifact . | . . . Weapon 6 | 2 1 3 Energy Gun 2 | 2 . . Energy Cannon . | . . . Ballistic Gun 2 | . 1 1 Ballistic Cannon . | . . . Launcher 1 | . . 1 Special Weapon 1 | . . 1 Impact Weapon . | . . . Slashing Weapon . | . . . Piercing Weapon . | . . . Special Melee Weapon . | . . . Unidentified Prototypes . | . . . Corrupted Parts 1 | . 1 . System Corruption 1 | . 1 . Parts Lost 6 | . 1 5 Power 1 | . . 1 Propulsion 2 | . . 2 Utility . | . . . Weapon 3 | . 1 2 Highest Loss Streak 5 | . 1 5 To Critical Strikes . | . . . Average Slot Usage (%) 89 | . 94 78 Engine 11 | . 13 7 Treads 3 | . . 11 Leg 24 | . 28 17 Device 7 | . 10 . Storage 14 | . 14 14 Processor 5 | . . 14 Energy Gun 15 | . 22 . Ballistic Gun 4 | . 3 6 Special Weapon 2 | . . 7 Naked Turns . | . . . Heaviest Build 28 | 14 16 28 Greatest Support 40 | 20 20 40 Greatest Overweight (x) 1 | 1 . 1 Average Overweight (x) . | . . . Largest Inventory Capacity 15 | 8 8 15 Average Capacity 9 | 7 8 13 Most Carried 8 | 4 8 7 Average Carried 5 | 2 6 4 Final Capacity 15 | 8 8 15 Final Carried 8 | 4 8 2 Class Distribution -------------------- 100% | Mutant Dominant Class ---------------- Mutant | -10/Materials Mutant | -10/Mines Resources | -11 -10 -10 ----------- Run | Yrd Mat Min Matter Collected 391 | 201 116 74 Remotely . | . . . Salvage Created 272 | . 272 . Parts 18 | . 18 . Haulers Intercepted . | . . . Recyclers Shooed 2 | . 1 1 Parts Field Recycled . | . . . Retrieved Matter . | . . . Parts Self-Destructed . | . . . Prevented . | . . . Kills | -11 -10 -10 ------- Run | Yrd Mat Min Combat Hostiles Destroyed 9 | . 6 3 Melee 3 | . . 3 Guns 6 | . 6 . Classes Destroyed 5 | . 4 1 Worker 1 | . 1 . Watcher 3 | . 3 . Swarmer 3 | . 3 . Grunt 3 | . 3 . Assembled 3 | . . 3 Best Kill Streak 5 | . 5 3 Combat Bots Only 3 | . 3 3 Max Kills in Single Turn 1 | . 1 1 Gunslinging . | . . . Exploded . | . . . Melee 1 | . . 1 Uniques/NPCs Destroyed . | . . . Combat | -11 -10 -10 -------- Run | Yrd Mat Min Hostile Shots Fired 83 | . 41 42 Missed 16 | . 6 10 Damage Taken 1154 | . 351 803 Core 267 | . 65 202 Absorbed by Shields . | . . . Core Remaining (%) 100 | 100 . . Volleys Fired 23 | . 20 3 Largest 2 | . 2 2 Hottest 90 | . 90 40 Shots Fired 46 | . 40 6 Gun 43 | . 40 3 Cannon . | . . . Launcher . | . . . Special 3 | . . 3 Kinetic 11 | . 8 3 Thermal 15 | . 12 3 Explosive . | . . . Electromagnetic 20 | . 20 . Robot Hit Streak 7 | . 7 1 Robot Miss Streak 3 | . 3 1 Penetration Max . | . . . Secondary Targets 4 | . 4 . Max Gunslinging Chain 1 | . 1 . Shots Hit Robots 28 | . 25 3 Core Hits 20 | . 13 7 Critical Kills . | . . . Critical Parts Destroyed . | . . . Critical Strikes 1 | . 1 . Burn 1 | . 1 . Melee Attacks . | . . . Impact . | . . . Slashing . | . . . Piercing . | . . . Sneak Attacks . | . . . Combat Hostiles . | . . . Follow-up Attacks . | . . . Damage Inflicted 456 | . 375 81 Guns 373 | . 373 . Cannons . | . . . Explosions . | . . . Melee . | . . . Ramming 73 | . 2 71 Kinetic 61 | . 61 . Thermal 86 | . 76 10 Explosive . | . . . Electromagnetic 236 | . 236 . Impact . | . . . Slashing . | . . . Piercing . | . . . Highest Corruption 1 | . 1 1 Average Corruption 1 | . 1 1 Corruption Purged . | . . . Corruption Blocked . | . . . Effects 2 | . . 2 Matter Fused 1 | . . 1 Data Loss (major) 1 | . . 1 Overload Shots . | . . . Overflow Damage . | . . . Projectiles . | . . . Explosions . | . . . Melee . | . . . Knockbacks 1 | . . 1 Impact 1 | . . 1 Kinetic . | . . . Secondary . | . . . Self-Inflicted Damage . | . . . Shots . | . . . Rammed 20 | . . 20 Targets Rammed 25 | . 1 24 Kicked 2 | . 1 1 Crushed 3 | . . 3 Highest Temperature 240 | . 240 53 Average Temperature 96 | . 106 30 Received Heat Transfer 306 | . 117 189 Siege Activations . | . . . Robots Corrupted . | . . . Combat Hostiles . | . . . Parts Fried 1 | . 1 . Impact Corruptions . | . . . Robots Melted . | . . . Combat Hostiles . | . . . Parts Melted . | . . . Heat Transferred 371 | . 296 75 Parts Sabotaged . | . . . Parts Stolen . | . . . Parts Stripped . | . . . Power Chain Reactions . | . . . Alert | -11 -10 -10 ------- Run | Yrd Mat Min Peak Influence 212 | . 212 82 Initial 82 | . . 82 Average 82 | . 109 67 Maximum Alert Level 1 | . 1 . Low Security (%) 94 | 100 89 100 Level 1 5 | . 10 . Level 2 . | . . . Level 3 . | . . . Level 4 . | . . . Level 5 . | . . . High Security . | . . . Max Security . | . . . Squads Dispatched 1 | . 1 . Investigation . | . . . Extermination . | . . . Reinforcement 1 | . 1 . Assault . | . . . Garrison . | . . . Intercept . | . . . Searches Triggered . | . . . Construction Impeded . | . . . Haulers Reinforced . | . . . Active Scanning Responses . | . . . Cargo Convoy Interrupts . | . . . Stealth | -11 -10 -10 --------- Run | Yrd Mat Min Distress Signals 2 | . 2 . Communications Jammed . | . . . Distress Signals . | . . . Times Spotted 27 | . 11 16 Peak Tracking Total 7 | . 4 7 Tactical Retreats 2 | . . 2 Traps | -11 -10 -10 ------- Run | Yrd Mat Min Traps Triggered . | . . . Indirectly . | . . . Trap Hack Attempts . | . . . Triggered . | . . . Disarmed . | . . . Reprogrammed . | . . . Reused . | . . . Traps Extracted . | . . . Installed . | . . . Triggered . | . . . Machines | -11 -10 -10 ---------- Run | Yrd Mat Min Machines Disabled 1 | . 1 . Max in Single Turn 1 | . 1 . Machines Repaired . | . . . Machines Dismantled . | . . . Machines Sabotaged . | . . . Overloaded Fab Kills . | . . . Hacking | -11 -10 -10 --------- Run | Yrd Mat Min Machines Accessed . | . . . Terminals . | . . . Fabricators . | . . . Repair Stations . | . . . Recycling Units . | . . . Scanalyzers . | . . . Garrison Access . | . . . Total Hacks . | . . . Successful . | . . . Failed . | . . . Catastrophic . | . . . Database Lockouts . | . . . Manual . | . . . Terminals . | . . . Fabricators . | . . . Repair Stations . | . . . Recycling Units . | . . . Scanalyzers . | . . . Garrison Access . | . . . Terminal Hacks . | . . . Fabricator Hacks . | . . . Repair Station Hacks . | . . . Recycling Unit Hacks . | . . . Scanalyzer . | . . . Garrison Access Hacks . | . . . Unauthorized Hacks . | . . . Terminals . | . . . Fabricators . | . . . Repair Stations . | . . . Recycling Units . | . . . Scanalyzers . | . . . Garrison Access . | . . . Data Cores Recovered . | . . . Used . | . . . Hacking Detections . | . . . Full Trace Events . | . . . Feedback Events . | . . . Feedback Blocked . | . . . Robot Schematics Acquired . | . . . Robots Built . | . . . Authchips . | . . . Time . | . . . Total Robot Build Rating . | . . . Part Schematics Acquired . | . . . Parts Built . | . . . Authchips . | . . . Time . | . . . Total Part Build Rating . | . . . Parts Repaired . | . . . Time . | . . . Parts Recycled . | . . . Recycled Matter . | . . . Retrieved Matter . | . . . Retrieved Components . | . . . Parts Scanalyzed . | . . . Part Schematics Acquired . | . . . Parts Damaged . | . . . Bothacking | -11 -10 -10 ------------ Run | Yrd Mat Min Used RIF Installer . | . . . Robots Hacked . | . . . Non-combat . | . . . Combat . | . . . Robot Hacks Applied . | . . . Relay Couplers Released . | . . . Fabnet Peak Effective % . | . . . Robots Rewired . | . . . Allies Hacked . | . . . Hacks Repelled . | . . . Allies | -11 -10 -10 -------- Run | Yrd Mat Min Total Allies . | . . . Largest Group . | . . . Highest-Rated Group . | . . . Highest-Rated Ally . | . . . Total Orders . | . . . Ally Attacks . | . . . Total Damage . | . . . Kills . | . . . Allies Corrupted . | . . . Allies Melted . | . . . Intel | -11 -10 -10 ------- Run | Yrd Mat Min Robot Analysis Total . | . . . Derelict Logs Recovered . | . . . Drone Launches . | . . . Drone Recoveries . | . . . Exploration | -11 -10 -10 ------------- Run | Yrd Mat Min Turns Passed 513 | 75 295 143 Spaces Moved 296 | 55 186 55 Core 6 | 6 . . Treads 15 | . . 15 Legs 275 | 49 186 40 Wheels . | . . . Hover . | . . . Flight . | . . . Fastest Speed 50 | 50 120 120 Average Speed 125 | 113 120 155 Slowest Speed 190 | 190 120 190 Overloaded Moves . | . . . Propulsion Burnouts . | . . . Robots Hopped . | . . . Cave-ins Triggered . | . . . Exploration Rate (%) 15 | 4 29 12 Regions Visited 2 Branch Regions 1 Pre-discovered Areas . | . . . Known Exits Taken . | . . . Unknown Exits Taken 2 | 1 1 . Scrap Searched 1 | . . 1 Spaces Dug . | . . . Terrain Destroyed . | . . . Melee . | . . . Projectile . | . . . AOE . | . . . Terrain Rammed . | . . . Walls Destroyed . | . . . Machines Disabled . | . . . Actions | -11 -10 -10 --------- Run | Yrd Mat Min Total 373 | 65 217 91 Wait . | . . . Move 294 | 54 185 55 Hop . | . . . Pick Up 10 | 5 5 . Fast Attach 7 | 5 2 . Attach 8 | 1 1 6 Detach . | . . . Swap 3 | . 1 2 Drop 3 | . 2 1 Fire 23 | . 20 3 Melee . | . . . Ram . | . . . Kick 2 | . 1 1 Crush 23 | . . 23 Escape Stasis . | . . . Rewire . | . . . Trap . | . . . Miscellaneous . | . . . Route ------- -11/Scrapyard -10/Materials -10/Mines History --------- Turn | Location | Event 17 | -11/Scrapyard | Discovered new exit (range 16) 76 | -11/Scrapyard | Entered Materials 91 | -10/Materials | Discovered new exit (range 16) 315 | -10/Materials | Build established: Mutant 371 | -10/Materials | Entered Mines 389 | -10/Mines | Assembled infested the area 394 | -10/Mines | Assisted by a Guerilla fighting off Assembled 451 | -10/Mines | Core integrity fell below 50% 481 | -10/Mines | Lost 5 parts (1p2n2w) 489 | -10/Mines | Core integrity fell below 20% 514 | -10/Mines | Destroyed by as-67332 with Assembled Maul Last Messages --------------- 00470_ Slammed into as-25688. 00478_ Crushed as-25688. 00478_ as-25688 destroyed. 00480_ Slammed into as-86728. 00483_ Crushed as-86728. 00483_ as-86728 destroyed. 00485_ The unstable cave ceiling collapses. 00485_ Slammed into as-08864. 00486_ The unstable cave ceiling collapses. 00486_ Slammed into as-08864. 00489_ The unstable cave ceiling collapses. 00490_ Slammed into as-08864. 00495_ The unstable cave ceiling collapses. 00496_ Slammed into as-08864. 00499_ Crushed as-08864. 00499_ as-08864 destroyed. 00503_ Acquired 6 matter. 00503_ The unstable cave ceiling collapses. 00503_ Acquired 4 matter. 00511_ Slammed into as-90317. Map ----- +----------------------------------------------------+ | | | | | ?????????????????????????????????????????????????? | | ?????????????????????????????????????????????????? | | ?????????????????????????????????????????????????? | | ?????????????????????????????????????????????????? | | ?????????????????????????????????????????????????? | | ?????????????????????????????????????????????????? | | ?????????????????????????????????????????????????? | | ?????????????????????????????????????????????????? | | ?????????????????????????????????????????????????? | | ?????????????????????????????????????????????????? | | ?????????????????????????????????????????????????? | | ?????????????????????????????????????????????????? | | ?????????????????????????????????????????????????? | | ?????????????????????????????????????????????????? | | ?????????????????????????????????????????????????? | | ?????????????????????????????????????????????????? | | ?????????????????????????????????????????????????? | | ?????????????????????????????????????????????????? | | ?????????????????????????????????????????????????? | | ?????????????????????????????? ##????????????????? | | ????????????????????????????? ?????????????????? | | ????????????????????##?#####%=???????????????????? | | ????????????????????# ? #aaa?????????????????????? | | ????????????????????# # #@#?#????????????????????? | | ???????????????????## ###%# #????????????????????? | | ???????????????????# #%%%%# ##???????????????????? | | ???????????????????# %%##### #???????????????????? | | ??????????????????###% %# ##????????????????????? | | ??????????????????# #%% #????????????????????? | | ?????????????????## #% ###????????????????????? | | ?????????????????# # #?????????????????????? | | ?????????????????# ### #?????????????????????? | | ?????????????????# ### # #?????????????????????? | | ?????????????????# # ###?????????????????????? | | ?????????????????# # #?????????????????????? | | ?????????????????## # = ##?????????????????????? | | ??????????????????## #??????????????????????? | | ???????????????????# # ##??????????????????????? | | ???????????????????# ####???###?????????????????? | | ???????????????????## #????## ##????????????????? | | ???????????????###### ###### ##???????????????? | | ???????######### ! ##??????????????? | | %%########### #??????????????? | | ??????########## #??????### #??????????????? | | ??????????????? ??????# #??????????????? | | ?????????????? ?????# """ ###??????????????? | | ?????????????#% ????# """ ##????????????????? | | ?????????????# ????# """ #?????????????????? | +----------------------------------------------------+ Best States ------------- Heat Dissipation 25 Energy Generation 10 Energy Capacity 250 Matter Stores 300 Matter Capacity 300 Sight Range 18 Terrain Scan Density 10 ECM Strength 1 Evasion (%) 55 Recoil Reduction 2 Item Schematics ----------------- None Robot Schematics ------------------ None Fabricated ------------ Nothing Alien Tech Used ----------------- None Achievements -------------- None Challenges ------------ None Game ------ Seed PulseRainbowOptics Manual? 0 Play Time 00:07:06 Cumulative 13.8 hours Start 2024.06.30 @ 23:30:41 End 2024.06.30 @ 23:35:27 Sessions 1 Manual Loads 0 Difficulty Rogue Special Mode None Game No. 34 Rogue 34 Adventurer 0 Explorer 0 Win Type - Total 0 Types 0/0/0/0/0/0/0/0/0 Lore% 16 Gallery% 20 Achievement% 17 Wizard Run 0 Options --------- Layout 1 ASCII 0 Keyboard 1 Movement Arrows Keybinds 0 Fullscreen 1 Font 24/Smallcaps Map View 50x35 Zoom Use 0% Tactical HUD 1 Map Filters NONE Filters NONE Steam 1 RUN: 293e20e0-d9d1-42e4-8405-2b1179a2187b